Cogmind - Beta 10.1 @@@ ROGUE MODE // 2020.09.22 @ 21:09:20 Player: BluPotato Result: Destroyed by Y-45 Defender with Beam Rifle Performance ------------- Evolutions (1) 500 Regions Visited (2) 400 Robots Destroyed (7) 35 Value Destroyed (166) 166 Prototype IDs (0) 0 Alien Tech Used (0) 0 Bonus (0) 0 TOTAL SCORE: 1101 Bonus ------- None Cogmind --------- Core Integrity 0/400 Matter 156/300 Energy 100/100 System Corruption 0% Temperature Cool (18) Movement Core (200) Ox3 Location -9/Materials Parts ------- > --- POWER (1) -------- (None) > --- PROPULSION (2) --- (None) > --- UTILITY (3) ------ Small Storage Unit Medium Storage Unit Hacking Suite > --- WEAPON (3) ------- (None) > --- INVENTORY (10) --- Light Ion Engine Peak State ------------ > --- POWER ------------ Improved Ion Engine > --- PROPULSION ------- Aluminum Leg Aluminum Leg > --- UTILITY ---------- Small Storage Unit Medium Storage Unit Hacking Suite > --- WEAPON ----------- Assault Rifle Light Assault Rifle Grenade Launcher > --- INVENTORY -------- Light Ion Engine [Rating: 12] Favorites ----------- Power Light Ion Engine Engine Light Ion Engine Propulsion Aluminum Leg Leg Aluminum Leg Wheel Wheel Utility Medium Storage Unit Device Structural Scanner Storage Medium Storage Unit Hackware Hacking Suite Weapon Assault Rifle Energy Gun Small Laser Ballistic Gun Assault Rifle Launcher Grenade Launcher Build | -11 -10 -9 ------- Run | Scr Mat Mat Slots Evolved 2 | . . 2 Power . | . . . Propulsion . | . . . Utility 1 | . . 1 Weapon 1 | . . 1 Parts Attached 17 | 6 7 4 Power 2 | 1 . 1 Engine 2 | 1 . 1 Core . | . . . Reactor . | . . . Propulsion 4 | 2 2 . Treads . | . . . Leg 2 | . 2 . Wheel 2 | 2 . . Hover . | . . . Flight . | . . . Utility 5 | 1 2 2 Device 1 | . 1 . Storage 3 | 1 1 1 Processor . | . . . Hackware 1 | . . 1 Protection . | . . . Artifact . | . . . Weapon 6 | 2 3 1 Energy Gun 2 | 1 1 . Energy Cannon . | . . . Ballistic Gun 2 | 1 1 . Ballistic Cannon . | . . . Launcher 2 | . 1 1 Special Weapon . | . . . Impact Weapon . | . . . Slashing Weapon . | . . . Piercing Weapon . | . . . Special Melee Weapon . | . . . Unidentified Prototypes . | . . . Parts Lost 7 | . 1 6 Power 1 | . . 1 Propulsion 3 | . 1 2 Utility . | . . . Weapon 3 | . . 3 Highest Loss Streak 6 | . 1 6 Average Slot Usage (%) 91 | . 98 82 Engine 12 | . 14 9 Leg 11 | . 6 18 Wheel 12 | . 21 . Device 7 | . 12 1 Storage 17 | . 14 22 Hackware 4 | . . 9 Energy Gun 5 | . 10 . Ballistic Gun 16 | . 17 16 Launcher 2 | . . 5 Naked Turns . | . . . Heaviest Build 25 | 10 15 25 Greatest Support 26 | 26 26 20 Greatest Overweight (x) 6 | 3 1 6 Average Overweight (x) . | . . . Largest Inventory Capacity 10 | 6 8 10 Average Capacity 8 | 5 7 10 Most Carried 7 | 5 7 3 Average Carried 3 | 2 5 1 Final Capacity 10 | 6 8 10 Final Carried 4 | 4 3 1 Class Distribution -------------------- 100% | Mutant Dominant Class ---------------- Mutant | -10/Materials Mutant | -9/Materials Resources | -11 -10 -9 ----------- Run | Scr Mat Mat Matter Collected 344 | 247 40 57 Remotely . | . . . Salvage Created 161 | . 161 . Parts 10 | . 10 . Haulers Intercepted . | . . . Recyclers Shooed . | . . . Parts Field Recycled . | . . . Retrieved Matter . | . . . Parts Self-Destructed . | . . . Prevented . | . . . Kills | -11 -10 -9 ------- Run | Scr Mat Mat Combat Hostiles Destroyed 7 | . 7 . Guns 3 | . 3 . AOE 4 | . 4 . Classes Destroyed 2 | . 2 . Swarmer 3 | . 3 . Grunt 4 | . 4 . Best Kill Streak 5 | . 5 . Combat Bots Only 5 | . 5 . Max Kills in Single Turn 2 | . 2 . Gunslinging . | . . . Exploded 2 | . 2 . Melee . | . . . Uniques/NPCs Destroyed . | . . . Combat | -11 -10 -9 -------- Run | Scr Mat Mat Damage Taken 1289 | . 246 1043 Core 467 | . 55 412 Absorbed by Shields . | . . . Core Remaining (%) 89 | 100 78 . Volleys Fired 33 | . 21 12 Largest 2 | . 2 2 Hottest 60 | . 60 40 Shots Fired 61 | . 42 19 Gun 57 | . 38 19 Cannon . | . . . Launcher 4 | . 4 . Special . | . . . Kinetic 47 | . 28 19 Thermal 10 | . 10 . Explosive 4 | . 4 . Electromagnetic . | . . . Robot Hit Streak 8 | . 8 4 Robot Miss Streak 4 | . 4 2 Penetration Max . | . . . Secondary Targets . | . . . Shots Hit Robots 39 | . 26 13 Core Hits 12 | . 10 2 Critical Hits . | . . . Critical Kills . | . . . Critical Parts Destroyed . | . . . Melee Attacks . | . . . Impact . | . . . Slashing . | . . . Piercing . | . . . Sneak Attacks . | . . . Combat Hostiles . | . . . Follow-up Attacks . | . . . Damage Inflicted 772 | . 637 135 Guns 347 | . 212 135 Cannons . | . . . Explosions 425 | . 425 . Melee . | . . . Ramming . | . . . Kinetic 270 | . 135 135 Thermal 77 | . 77 . Explosive 425 | . 425 . Electromagnetic . | . . . Impact . | . . . Slashing . | . . . Piercing . | . . . Highest Corruption 3 | . 3 . Average Corruption 2 | . 2 . Corruption Purged . | . . . Effects 2 | . 2 . Message Errors 2 | . 2 . Overload Shots . | . . . Overflow Damage 10 | . 10 . Projectiles . | . . . Explosions 10 | . 10 . Melee . | . . . Knockbacks . | . . . Impact . | . . . Kinetic . | . . . Secondary . | . . . Self-Inflicted Damage 24 | . 24 . Shots 2 | . 2 . Rammed . | . . . Targets Rammed . | . . . Kicked . | . . . Crushed . | . . . Highest Temperature 52 | . 52 10 Average Temperature 26 | . 29 5 Received Heat Transfer 462 | . 96 366 Siege Activations . | . . . Robots Corrupted . | . . . Combat Hostiles . | . . . Parts Fried . | . . . Impact Corruptions . | . . . Robots Melted . | . . . Combat Hostiles . | . . . Parts Melted . | . . . Heat Transferred 175 | . 175 . Parts Sabotaged . | . . . Parts Stolen . | . . . Parts Stripped . | . . . Power Chain Reactions . | . . . Missiles Intercepted . | . . . Alert | -11 -10 -9 ------- Run | Scr Mat Mat Peak Influence 175 | . 175 103 Initial 73 | . . 73 Average 59 | . 61 81 Maximum Alert Level . | . . . Low Security (%) 100 | 100 100 100 Level 1 . | . . . Level 2 . | . . . Level 3 . | . . . Level 4 . | . . . Level 5 . | . . . High Security . | . . . Max Security . | . . . Squads Dispatched 3 | . 3 . Investigation . | . . . Extermination . | . . . Reinforcement 3 | . 3 . Assault . | . . . Garrison . | . . . Intercept . | . . . Construction Impeded . | . . . Haulers Reinforced . | . . . Stealth | -11 -10 -9 --------- Run | Scr Mat Mat Distress Signals . | . . . Communications Jammed . | . . . Distress Signals . | . . . Times Spotted 25 | . 13 12 Peak Tracking Total 10 | . 4 10 Tactical Retreats . | . . . Traps | -11 -10 -9 ------- Run | Scr Mat Mat Traps Triggered 2 | . 2 . Indirectly . | . . . Trap Hack Attempts . | . . . Triggered . | . . . Disarmed . | . . . Reprogrammed . | . . . Reused . | . . . Traps Extracted . | . . . Installed . | . . . Triggered . | . . . Machines | -11 -10 -9 ---------- Run | Scr Mat Mat Machines Disabled . | . . . Max in Single Turn . | . . . Machines Sabotaged . | . . . Garrisons Compromised . | . . . Overloaded Fab Kills . | . . . Fab Network Shutdowns . | . . . Hacking | -11 -10 -9 --------- Run | Scr Mat Mat Machines Accessed . | . . . Terminals . | . . . Fabricators . | . . . Repair Stations . | . . . Recycling Units . | . . . Scanalyzers . | . . . Garrison Access . | . . . Total Hacks . | . . . Successful . | . . . Failed . | . . . Catastrophic . | . . . Database Lockouts . | . . . Manual . | . . . Terminals . | . . . Fabricators . | . . . Repair Stations . | . . . Recycling Units . | . . . Scanalyzers . | . . . Garrison Access . | . . . Terminal Hacks . | . . . Fabricator Hacks . | . . . Repair Station Hacks . | . . . Recycling Unit Hacks . | . . . Scanalyzer . | . . . Garrison Access Hacks . | . . . Unauthorized Hacks . | . . . Terminals . | . . . Fabricators . | . . . Repair Stations . | . . . Recycling Units . | . . . Scanalyzers . | . . . Garrison Access . | . . . Data Cores Recovered . | . . . Used . | . . . Hacking Detections . | . . . Full Trace Events . | . . . Feedback Events . | . . . Feedback Blocked . | . . . Robot Schematics Acquired . | . . . Robots Built . | . . . Matter . | . . . Time . | . . . Total Robot Build Rating . | . . . Part Schematics Acquired . | . . . Parts Built . | . . . Matter . | . . . Time . | . . . Total Part Build Rating . | . . . Parts Repaired . | . . . Time . | . . . Parts Recycled . | . . . Recycled Matter . | . . . Retrieved Matter . | . . . Retrieved Components . | . . . Parts Scanalyzed . | . . . Part Schematics Acquired . | . . . Parts Damaged . | . . . Bothacking | -11 -10 -9 ------------ Run | Scr Mat Mat Used RIF Installer . | . . . Robots Hacked . | . . . Non-combat . | . . . Combat . | . . . Robot Hacks Applied . | . . . Relay Couplers Released . | . . . Robots Rewired . | . . . Allies Hacked . | . . . Hacks Repelled . | . . . Allies | -11 -10 -9 -------- Run | Scr Mat Mat Total Allies . | . . . Largest Group . | . . . Highest-Rated Group . | . . . Highest-Rated Ally . | . . . Total Orders . | . . . Ally Attacks . | . . . Total Damage . | . . . Kills . | . . . Allies Corrupted . | . . . Allies Melted . | . . . Intel | -11 -10 -9 ------- Run | Scr Mat Mat Robot Analysis Total . | . . . Derelict Logs Recovered . | . . . Drone Launches . | . . . Drone Recoveries . | . . . Exploration | -11 -10 -9 ------------- Run | Scr Mat Mat Turns Passed 461 | 67 225 169 Spaces Moved 317 | 65 161 91 Core 33 | 23 . 10 Treads . | . . . Legs 103 | . 22 81 Wheels 181 | 42 139 . Hover . | . . . Flight . | . . . Fastest Speed 50 | 50 90 120 Average Speed 105 | 78 94 145 Slowest Speed 350 | 200 120 350 Overloaded Moves . | . . . Propulsion Burnouts . | . . . Robots Hopped . | . . . Cave-ins Triggered . | . . . Exploration Rate (%) 20 | 3 42 17 Regions Visited 2 Branch Regions . Pre-discovered Areas . | . . . Known Exits Taken . | . . . Unknown Exits Taken 2 | 1 1 . Scrap Searched . | . . . Spaces Dug . | . . . Terrain Destroyed 22 | . 22 . Melee . | . . . Projectile . | . . . AOE 22 | . 22 . Terrain Rammed . | . . . Walls Destroyed . | . . . Machines Disabled . | . . . Actions | -11 -10 -9 --------- Run | Scr Mat Mat Total 386 | 80 195 111 Wait . | . . . Move 315 | 64 160 91 Hop . | . . . Pick Up 15 | 10 3 2 Fast Attach . | . . . Attach 16 | 6 6 4 Detach 2 | . 2 . Swap 1 | . 1 . Drop 4 | . 2 2 Fire 33 | . 21 12 Melee . | . . . Ram . | . . . Kick . | . . . Crush . | . . . Escape Stasis . | . . . Rewire . | . . . Trap . | . . . Miscellaneous . | . . . Route ------- -11/Scrapyard -10/Materials -9/Materials History --------- Turn | Location | Event 10 | -11/Scrapyard | Discovered new exit (range 16) 68 | -11/Scrapyard | Entered Materials 265 | -10/Materials | Discovered new exit (range 9) 293 | -10/Materials | Entered another Materials area 293 | -9/Materials | Evolved 2 slots: Utility x1, Weapon x1 337 | -9/Materials | Build established: Mutant 451 | -9/Materials | Core integrity fell below 50% 457 | -9/Materials | Core integrity fell below 20% 462 | -9/Materials | Destroyed by Y-45 Defender with Beam Rifle Last Messages --------------- LOCATION=UNKNOWN GOAL=ESCAPE K-01 Serf collects debris. Dropped Structural Scanner. K-01 Serf collects debris. Acquired Hacking Suite. K-01 Serf collects debris. Acquired Imp. Ion Engine. Dropped Lgt. Ion Engine. Lgt. Assault Rifle destroyed. L-31 Rogue destroyed. Grenade Launcher destroyed. Assault Rifle destroyed. Acquired 57 matter. K-01 Serf collects debris. R-06 Scavenger collects Core Shielding. Aluminum Leg destroyed. S-10 Pest destroyed. Imp. Ion Engine destroyed. U-05 Engineer lays Concrete. Map ----- +----------------------------------------------------+ | ! ???????????????????????? | | ???????????????????????? | | ???????????????????????? | | ### #####+##### #######????????????????????????? | | ??# #???? ???? #??????????????????????????????? | | ??# #???? ???? #??????????????????????????????? | | ??# #???? ????? +??????????????????????????????? | | ??# #???? ?????#??????????????????????????????? | | ??# #???? ???????????????????????????????????? | | ??# #????""" ???????????????????????????????????? | | # #????""" #??????????????????????????????????? | | + #???????? #??????????????????????????????????? | | ### #???????? #??????????????????????????????????? | | ?## ##???????????????????????????????????????????? | | ?# #######??? ???????????????????????????????? | | ?+ #??????????????????????????????? | | ?# #######??# ???????????????????????????????? | | ?## ##????????# #??????????????????????????????? | | ??# #?????????# #??????????????????????????????? | | ??# #?????????# #??????????????????????????????? | | # #?????????# #??????????????????????????????? | | " + #?????????# #??????????????????????????????? | | " # #??######## #??????????????????????????????? | | ??# #??# ## #??????????? #?????????????????? | | ??# #??# % ## ########## ##????????????????? | | ??# #??#= ## u @u ##???????????????? | | ??# #??# """## u ?????????? | | ###/#### """## #????????? | | # """## ?????????? | | """ # ## ?????????? | | """ #+#/####g ??????????? | | "S # Y ??????????? | | """ + g g ######### ??????????? | | "" # ss #?????????s???????????? | | ###+####### g #?????????????????????? | | // #?? ????# #?????????????????????? | | // * #?? !! #??# k ????????????????????? | | ########?? !!?#??# s ???????????????????? | | ???????????!!????# ??????????????????? | | ??????????? ???##+#####+## ??????????????????? | | ??????????? ?????%=???? ?##???????????????????? | | ????????????###????* ????? #?????????????????????? | | ??????????????????? ""???????????????????????????? | | ??????????????????? "????????????????????????????? | | ??????????????????? ?????????????????????????????? | | ?????????????????????????????????????????????????? | | ?????????????????????????????????????????????????? | | ?????????????????????????????????????????????????? | | ?????????????????????????????????????????????????? | | ?????????????????????????????????????????????????? | +----------------------------------------------------+ Best States ------------- Heat Dissipation 28 Energy Generation 12 Energy Capacity 265 Matter Stores 287 Matter Capacity 300 Sight Range 16 Terrain Scan Density 10 Evasion (%) 50 Offensive Hacking 10 Item Schematics ----------------- None Robot Schematics ------------------ None Fabricated ------------ Nothing Alien Tech Used ----------------- None Achievements -------------- None Challenges ------------ None Game ------ Seed PointyMinesnifferBox Manual? 0 Play Time 00:08:29 Cumulative 2.1 hours Start 2020.09.22 @ 21:02:38 End 2020.09.22 @ 21:09:20 Sessions 1 Manual Loads 0 Difficulty Rogue Special Mode None Game No. 19 Rogue 19 Adventurer 0 Explorer 0 Win Type - Total 0 Types 0/0/0/0/0/0/0/0/0 Lore% 2 Gallery% 11 Achievement% 4 Wizard Run 0 Options --------- ASCII 0 Keyboard 0 Movement Mouse Keybinds 0 Fullscreen 1 Font 20/SmallcapsGlow Map View 66x50 Tactical HUD 0 Map Filters NONE Filters NONE Steam 1 RUN: 113f7cf8-3a65-4cfb-ac35-a28fb933daf0